[Event "Early-Titled-Tuesday-Blitz-March-26-2024"]
[Site "Chess.com"]
[Date "2024.03.26"]
[Round "9"]
[White "KevinGeorgeMicheal"]
[Black "Winner_7777"]
[Result "1/2-1/2"]
[WhiteElo "2443"]
[BlackElo "2587"]
[TimeControl "180+1"]
[EndTime "9:45:22 PDT"]
[Termination "Game drawn by repetition"]

1. e4 {[%clk 0:03:00.9]} 1... c5 {[%clk 0:03:00]} 2. Nf3 {[%clk 0:02:58.8]} 2...
d6 {[%clk 0:03:00.3]} 3. Nc3 {[%clk 0:02:56.8]} 3... Nf6 {[%clk 0:03:00.3]} 4.
d4 {[%clk 0:02:56.6]} 4... cxd4 {[%clk 0:03:01.2]} 5. Nxd4 {[%clk 0:02:57.3]}
5... a6 {[%clk 0:03:01.8]} 6. Bc4 {[%clk 0:02:53.5]} 6... e6 {[%clk 0:03:01.1]}
7. O-O {[%clk 0:02:52.9]} 7... Be7 {[%clk 0:02:59.5]} 8. a4 {[%clk 0:02:52.4]}
8... b6 {[%clk 0:02:58.3]} 9. Qe2 {[%clk 0:02:52.1]} 9... O-O {[%clk 0:02:57.1]}
10. Bg5 {[%clk 0:02:33.4]} 10... Bb7 {[%clk 0:02:56.2]} 11. Bd2 {[%clk
0:02:14.2]} 11... Nbd7 {[%clk 0:02:53.8]} 12. Rfe1 {[%clk 0:02:13.3]} 12... Qc7
{[%clk 0:02:52]} 13. Rad1 {[%clk 0:02:10.9]} 13... Ne5 {[%clk 0:02:47.8]} 14.
Ba2 {[%clk 0:02:09.3]} 14... Rac8 {[%clk 0:02:48.3]} 15. f4 {[%clk 0:02:06.7]}
15... Nc4 {[%clk 0:02:48.5]} 16. Bc1 {[%clk 0:02:07]} 16... d5 {[%clk 0:02:36]}
17. exd5 {[%clk 0:01:54.3]} 17... Nxd5 {[%clk 0:02:36.9]} 18. Nxd5 {[%clk
0:01:46.3]} 18... Bxd5 {[%clk 0:02:37.8]} 19. Kh1 {[%clk 0:01:43.6]} 19... Rfd8
{[%clk 0:02:26.2]} 20. b3 {[%clk 0:01:38.1]} 20... Na3 {[%clk 0:02:13.8]} 21. c4
{[%clk 0:01:30.1]} 21... Bb7 {[%clk 0:02:09.6]} 22. f5 {[%clk 0:01:18.3]} 22...
e5 {[%clk 0:01:29.8]} 23. Qxe5 {[%clk 0:01:15.9]} 23... Qxe5 {[%clk 0:01:24.2]}
24. Rxe5 {[%clk 0:01:15.3]} 24... Bf6 {[%clk 0:01:23.8]} 25. Ree1 {[%clk
0:01:13.6]} 25... Nxc4 {[%clk 0:01:19.6]} 26. bxc4 {[%clk 0:01:08.6]} 26... Bxd4
{[%clk 0:01:20]} 27. Bg5 {[%clk 0:01:03.5]} 27... f6 {[%clk 0:01:19.2]} 28. Bf4
{[%clk 0:00:45.5]} 28... Bc5 {[%clk 0:00:58.4]} 29. h3 {[%clk 0:00:23.9]} 29...
a5 {[%clk 0:00:55.4]} 30. Kh2 {[%clk 0:00:20.9]} 30... Kf7 {[%clk 0:00:42.6]}
31. Bb1 {[%clk 0:00:18.8]} 31... Bf2 {[%clk 0:00:17.1]} 32. Rf1 {[%clk
0:00:14.8]} 32... Bd4 {[%clk 0:00:09]} 33. Ba2 {[%clk 0:00:12.9]} 33... Bc5
{[%clk 0:00:08.7]} 34. Bb1 {[%clk 0:00:12.8]} 34... Ba6 {[%clk 0:00:07.3]} 35.
Ba2 {[%clk 0:00:10]} 35... Ke7 {[%clk 0:00:06]} 36. Rfe1+ {[%clk 0:00:09.5]}
36... Kf8 {[%clk 0:00:06.5]} 37. Kg3 {[%clk 0:00:07]} 37... Rd4 {[%clk
0:00:04.6]} 38. Rxd4 {[%clk 0:00:05.3]} 38... Bxd4 {[%clk 0:00:05.5]} 39. Bd6+
{[%clk 0:00:05.8]} 39... Kg8 {[%clk 0:00:04.2]} 40. c5+ {[%clk 0:00:05.7]} 40...
Kh8 {[%clk 0:00:04.6]} 41. c6 {[%clk 0:00:03.7]} 41... Bc3 {[%clk 0:00:03.4]}
42. Re4 {[%clk 0:00:01.6]} 42... Bd3 {[%clk 0:00:02.9]} 43. Re3 {[%clk 0:00:02]}
43... Rxc6 {[%clk 0:00:01.9]} 44. Rxd3 {[%clk 0:00:02.4]} 44... Rxd6 {[%clk
0:00:01.9]} 45. Rxd6 {[%clk 0:00:02.6]} 45... Be5+ {[%clk 0:00:02.2]} 46. Kf3
{[%clk 0:00:03.3]} 46... Bxd6 {[%clk 0:00:03.1]} 47. Ke4 {[%clk 0:00:04]} 47...
Bc5 {[%clk 0:00:03.6]} 48. Kd5 {[%clk 0:00:04.5]} 48... h5 {[%clk 0:00:04]} 49.
g4 {[%clk 0:00:04.9]} 49... hxg4 {[%clk 0:00:04]} 50. hxg4 {[%clk 0:00:05.6]}
50... Kh7 {[%clk 0:00:04.9]} 51. Ke4 {[%clk 0:00:06.3]} 51... Kh6 {[%clk
0:00:05.4]} 52. Kf3 {[%clk 0:00:07.1]} 52... Kg5 {[%clk 0:00:05.7]} 53. Bc4
{[%clk 0:00:07.8]} 53... Kh4 {[%clk 0:00:05.3]} 54. Bd3 {[%clk 0:00:08.2]} 54...
Kh3 {[%clk 0:00:04.8]} 55. Bb5 {[%clk 0:00:08.9]} 55... Kh2 {[%clk 0:00:04.8]}
56. Be8 {[%clk 0:00:09.6]} 56... Kg1 {[%clk 0:00:04.8]} 57. Bb5 {[%clk
0:00:10.3]} 57... Bd6 {[%clk 0:00:03.1]} 58. Be8 {[%clk 0:00:10.9]} 58... Be5
{[%clk 0:00:03.2]} 59. Bb5 {[%clk 0:00:11.7]} 59... Bc3 {[%clk 0:00:02.5]} 60.
Be8 {[%clk 0:00:12.3]} 60... Kf1 {[%clk 0:00:03]} 61. Bb5+ {[%clk 0:00:12.7]}
61... Ke1 {[%clk 0:00:03.2]} 62. Be8 {[%clk 0:00:13.3]} 62... Be5 {[%clk
0:00:03.6]} 63. Ke4 {[%clk 0:00:12.9]} 63... Ke2 {[%clk 0:00:03.3]} 64. Bb5+
{[%clk 0:00:10.8]} 64... Kf2 {[%clk 0:00:03.6]} 65. Be8 {[%clk 0:00:07.8]} 65...
Kg3 {[%clk 0:00:03.8]} 66. g5 {[%clk 0:00:07.5]} 66... Kg4 {[%clk 0:00:02.7]}
67. gxf6 {[%clk 0:00:06]} 67... gxf6 {[%clk 0:00:03.3]} 68. Bg6 {[%clk
0:00:06.2]} 68... Kg5 {[%clk 0:00:02.9]} 69. Bf7 {[%clk 0:00:06.4]} 69... Kg4
{[%clk 0:00:02.9]} 70. Ba2 {[%clk 0:00:06.8]} 70... Kg3 {[%clk 0:00:03]} 71. Bf7
{[%clk 0:00:07.4]} 71... Kf2 {[%clk 0:00:03.3]} 72. Ba2 {[%clk 0:00:07.7]} 72...
Ke2 {[%clk 0:00:03.6]} 73. Bc4+ {[%clk 0:00:07.7]} 73... Kd2 {[%clk 0:00:03.8]}
74. Bb5 {[%clk 0:00:08.5]} 74... Kc3 {[%clk 0:00:04.2]} 75. Be8 {[%clk
0:00:09.2]} 75... Kb4 {[%clk 0:00:05]} 76. Bb5 {[%clk 0:00:09.9]} 76... Kc5
{[%clk 0:00:05.9]} 77. Be8 {[%clk 0:00:10.4]} 77... Bc7 {[%clk 0:00:05.7]} 78.
Bb5 {[%clk 0:00:10.9]} 78... Be5 {[%clk 0:00:05.9]} 79. Be8 {[%clk 0:00:11.5]}
79... Bd6 {[%clk 0:00:06]} 80. Bb5 {[%clk 0:00:12]} 80... Be5 {[%clk 0:00:06.9]}
1/2-1/2

[Event "Early-Titled-Tuesday-Blitz-March-26-2024"]
[Site "Chess.com"]
[Date "2024.03.26"]
[Round "10"]
[White "alexrustemov"]
[Black "blitzking1729"]
[Result "1-0"]
[WhiteElo "2932"]
[BlackElo "2761"]
[TimeControl "180+1"]
[EndTime "9:49:49 PDT"]
[Termination "alexrustemov won by resignation"]

1. d4 {[%clk 0:03:00.9]} 1... Nf6 {[%clk 0:02:59]} 2. c4 {[%clk 0:03:01.4]} 2...
e6 {[%clk 0:02:59.1]} 3. Nf3 {[%clk 0:03:02]} 3... d5 {[%clk 0:02:58.9]} 4. Nc3
{[%clk 0:03:02.1]} 4... c6 {[%clk 0:02:58.6]} 5. e3 {[%clk 0:03:02]} 5... Nbd7
{[%clk 0:02:58.3]} 6. Qc2 {[%clk 0:03:02.6]} 6... Bd6 {[%clk 0:02:58.4]} 7. Bd2
{[%clk 0:03:03.2]} 7... O-O {[%clk 0:02:56]} 8. O-O-O {[%clk 0:03:03.8]} 8...
dxc4 {[%clk 0:02:54.6]} 9. Bxc4 {[%clk 0:03:03.8]} 9... b5 {[%clk 0:02:55.3]}
10. Bd3 {[%clk 0:03:04.4]} 10... Bb7 {[%clk 0:02:54.7]} 11. e4 {[%clk
0:03:04.9]} 11... Ng4 {[%clk 0:02:26.8]} 12. e5 {[%clk 0:03:03.1]} 12... Nxf2
{[%clk 0:02:20.5]} 13. exd6 {[%clk 0:02:57.9]} 13... Nxd1 {[%clk 0:02:18.1]} 14.
Rxd1 {[%clk 0:02:54.6]} 14... Nf6 {[%clk 0:02:16.8]} 15. Bf4 {[%clk 0:02:49.1]}
15... Rc8 {[%clk 0:02:14.4]} 16. Ne4 {[%clk 0:02:40.4]} 16... Nxe4 {[%clk
0:02:08]} 17. Bxe4 {[%clk 0:02:40.2]} 17... f5 {[%clk 0:02:07]} 18. Bd3 {[%clk
0:02:35.7]} 18... c5 {[%clk 0:02:05.9]} 19. dxc5 {[%clk 0:02:33.6]} 19... Bxf3
{[%clk 0:01:46.9]} 20. gxf3 {[%clk 0:02:31.8]} 20... Qh4 {[%clk 0:01:47.4]} 21.
Be5 {[%clk 0:02:18.2]} 21... Qb4 {[%clk 0:01:37.1]} 22. c6 {[%clk 0:02:14]}
22... Rfd8 {[%clk 0:01:32.3]} 23. a3 {[%clk 0:02:02]} 23... Qa5 {[%clk
0:01:31.2]} 24. c7 {[%clk 0:01:57]} 24... Rd7 {[%clk 0:01:31]} 25. Qc6 {[%clk
0:01:53.1]} 1-0

[Event "Early-Titled-Tuesday-Blitz-March-26-2024"]
[Site "Chess.com"]
[Date "2024.03.26"]
[Round "10"]
[White "PolandHussars"]
[Black "yonaltimur"]
[Result "1-0"]
[WhiteElo "2564"]
[BlackElo "2414"]
[TimeControl "180+1"]
[EndTime "9:50:15 PDT"]
[Termination "PolandHussars won by resignation"]

1. e4 {[%clk 0:02:53.1]} 1... c5 {[%clk 0:02:56.7]} 2. Ne2 {[%clk 0:02:52.9]}
2... d6 {[%clk 0:02:56]} 3. g3 {[%clk 0:02:53.2]} 3... Nf6 {[%clk 0:02:54.2]} 4.
Bg2 {[%clk 0:02:53.7]} 4... g6 {[%clk 0:02:54.7]} 5. c3 {[%clk 0:02:54]} 5...
Bg7 {[%clk 0:02:54.5]} 6. d4 {[%clk 0:02:54.6]} 6... cxd4 {[%clk 0:02:54.1]} 7.
cxd4 {[%clk 0:02:55.5]} 7... O-O {[%clk 0:02:54.4]} 8. Nbc3 {[%clk 0:02:56.1]}
8... Nc6 {[%clk 0:02:52.9]} 9. O-O {[%clk 0:02:56.2]} 9... e5 {[%clk 0:02:51.7]}
10. h3 {[%clk 0:02:55.1]} 10... Qe7 {[%clk 0:02:48.4]} 11. Be3 {[%clk
0:02:52.7]} 11... Bd7 {[%clk 0:02:40.9]} 12. d5 {[%clk 0:02:52.5]} 12... Na5
{[%clk 0:02:38.2]} 13. b3 {[%clk 0:02:51.9]} 13... Rac8 {[%clk 0:02:37.9]} 14.
Qd2 {[%clk 0:02:51.7]} 14... b6 {[%clk 0:02:38.2]} 15. Rfc1 {[%clk 0:02:45.1]}
15... Ne8 {[%clk 0:02:38.2]} 16. f3 {[%clk 0:02:40.9]} 16... f5 {[%clk
0:02:38.2]} 17. g4 {[%clk 0:02:41.4]} 17... fxe4 {[%clk 0:02:35]} 18. Nxe4
{[%clk 0:02:35.1]} 18... Nf6 {[%clk 0:02:35.1]} 19. N2g3 {[%clk 0:02:27.1]}
19... Nb7 {[%clk 0:02:27.3]} 20. b4 {[%clk 0:02:26]} 20... Rxc1+ {[%clk
0:02:23]} 21. Rxc1 {[%clk 0:02:25.5]} 21... Rc8 {[%clk 0:02:23.5]} 22. Bg5
{[%clk 0:02:21.7]} 22... Qf7 {[%clk 0:02:13.1]} 23. Rxc8+ {[%clk 0:02:15.7]}
23... Bxc8 {[%clk 0:02:14]} 24. Qc2 {[%clk 0:02:13.6]} 24... Bd7 {[%clk
0:01:57.6]} 25. Bxf6 {[%clk 0:02:10.8]} 25... Bxf6 {[%clk 0:01:57.4]} 26. Nxf6+
{[%clk 0:02:04.2]} 26... Qxf6 {[%clk 0:01:58.3]} 27. Qc7 {[%clk 0:02:04.3]}
27... Qf4 {[%clk 0:01:45.7]} 28. Nf1 {[%clk 0:02:00.7]} 28... Qd4+ {[%clk
0:01:42.7]} 29. Kh1 {[%clk 0:02:00.8]} 29... Bb5 {[%clk 0:01:38.2]} 30. Qxb7
{[%clk 0:01:58.3]} 30... Bxf1 {[%clk 0:01:38.1]} 31. Bxf1 {[%clk 0:01:58.6]}
31... Qf2 {[%clk 0:01:35.8]} 32. Bg2 {[%clk 0:01:58.1]} 32... Qe1+ {[%clk
0:01:33.5]} 33. Kh2 {[%clk 0:01:58.5]} 33... Qxb4 {[%clk 0:01:34.1]} 34. Qa8+
{[%clk 0:01:51.1]} 34... Kg7 {[%clk 0:01:33.6]} 35. Qxa7+ {[%clk 0:01:51.7]}
35... Kh6 {[%clk 0:01:34.1]} 36. Qf7 {[%clk 0:01:50.6]} 36... Qd2 {[%clk
0:01:27.2]} 37. h4 {[%clk 0:01:47]} 1-0

[Event "Early-Titled-Tuesday-Blitz-March-26-2024"]
[Site "Chess.com"]
[Date "2024.03.26"]
[Round "10"]
[White "venturov"]
[Black "LileKoridze"]
[Result "1-0"]
[WhiteElo "2521"]
[BlackElo "2453"]
[TimeControl "180+1"]
[EndTime "9:50:58 PDT"]
[Termination "venturov won by resignation"]

1. e4 {[%clk 0:03:00.9]} 1... c5 {[%clk 0:03:00]} 2. Nf3 {[%clk 0:02:59.3]} 2...
d6 {[%clk 0:03:00.6]} 3. d4 {[%clk 0:02:58.8]} 3... cxd4 {[%clk 0:03:01.5]} 4.
Nxd4 {[%clk 0:02:59.7]} 4... Nf6 {[%clk 0:03:01.4]} 5. Nc3 {[%clk 0:03:00.3]}
5... a6 {[%clk 0:03:01.4]} 6. Bc4 {[%clk 0:02:59.9]} 6... Nbd7 {[%clk
0:03:00.8]} 7. O-O {[%clk 0:02:57.4]} 7... e6 {[%clk 0:03:00.9]} 8. Re1 {[%clk
0:02:56.1]} 8... Ne5 {[%clk 0:02:57.8]} 9. Bb3 {[%clk 0:02:52.4]} 9... Be7
{[%clk 0:02:57.6]} 10. f4 {[%clk 0:02:42.7]} 10... Nc6 {[%clk 0:02:56.5]} 11.
Be3 {[%clk 0:02:38.1]} 11... O-O {[%clk 0:02:56.2]} 12. Qf3 {[%clk 0:02:28.9]}
12... Qc7 {[%clk 0:02:51.7]} 13. Rad1 {[%clk 0:02:26.3]} 13... Rb8 {[%clk
0:02:34.2]} 14. f5 {[%clk 0:02:24.7]} 14... Ne5 {[%clk 0:02:32.7]} 15. Qg3
{[%clk 0:02:19.4]} 15... exf5 {[%clk 0:02:19.4]} 16. exf5 {[%clk 0:02:05.9]}
16... b5 {[%clk 0:02:17.7]} 17. Bh6 {[%clk 0:01:52.7]} 17... Nh5 {[%clk
0:02:15.8]} 18. Qh3 {[%clk 0:01:49.5]} 18... Nf6 {[%clk 0:02:05.1]} 19. Bg5
{[%clk 0:01:46.6]} 19... h6 {[%clk 0:02:03.9]} 20. Bxf6 {[%clk 0:01:43.9]} 20...
Bxf6 {[%clk 0:02:04]} 21. Nd5 {[%clk 0:01:29.8]} 21... Qd8 {[%clk 0:02:01.6]}
22. Rxe5 {[%clk 0:01:18.6]} 22... Bxe5 {[%clk 0:01:57.9]} 23. Nc6 {[%clk
0:01:18.7]} 23... Qg5 {[%clk 0:01:53]} 24. Nxb8 {[%clk 0:00:58.8]} 24... Bxf5
{[%clk 0:01:52.1]} 25. Qxf5 {[%clk 0:00:55.3]} 25... Rxb8 {[%clk 0:01:38.3]} 26.
Qxg5 {[%clk 0:00:53.1]} 26... hxg5 {[%clk 0:01:39.2]} 27. Ne7+ {[%clk
0:00:50.4]} 27... Kf8 {[%clk 0:01:39]} 28. Nc6 {[%clk 0:00:49.9]} 28... Re8
{[%clk 0:01:38.6]} 29. Nxe5 {[%clk 0:00:49.1]} 29... dxe5 {[%clk 0:01:39]} 30.
Rd7 {[%clk 0:00:46]} 30... f6 {[%clk 0:01:35.6]} 31. Rf7+ {[%clk 0:00:45]} 31...
Kg8 {[%clk 0:01:35.8]} 32. Re7+ {[%clk 0:00:42.5]} 32... Kf8 {[%clk 0:01:35.8]}
33. Rxe8+ {[%clk 0:00:43]} 33... Kxe8 {[%clk 0:01:36.7]} 1-0

[Event "Early-Titled-Tuesday-Blitz-March-26-2024"]
[Site "Chess.com"]
[Date "2024.03.26"]
[Round "10"]
[White "FGHSMN"]
[Black "PeshkaCh"]
[Result "1-0"]
[WhiteElo "2967"]
[BlackElo "2866"]
[TimeControl "180+1"]
[EndTime "9:51:01 PDT"]
[Termination "FGHSMN won by checkmate"]

1. d4 {[%clk 0:02:57.6]} 1... Nf6 {[%clk 0:02:59.4]} 2. Bf4 {[%clk 0:02:57.8]}
2... c5 {[%clk 0:02:59.4]} 3. d5 {[%clk 0:02:56.8]} 3... e6 {[%clk 0:02:59.7]}
4. Nc3 {[%clk 0:02:55.8]} 4... exd5 {[%clk 0:02:57.6]} 5. Nxd5 {[%clk
0:02:56.7]} 5... Nxd5 {[%clk 0:02:54.8]} 6. Qxd5 {[%clk 0:02:57.6]} 6... Be7
{[%clk 0:02:49.3]} 7. O-O-O {[%clk 0:02:55.6]} 7... Nc6 {[%clk 0:02:48.2]} 8. e4
{[%clk 0:02:55.3]} 8... O-O {[%clk 0:02:45.2]} 9. Nf3 {[%clk 0:02:54.6]} 9... d6
{[%clk 0:02:31.7]} 10. Bxd6 {[%clk 0:02:53.5]} 10... Bxd6 {[%clk 0:02:32.6]} 11.
Qxd6 {[%clk 0:02:53.2]} 11... Qa5 {[%clk 0:02:30.6]} 12. Bc4 {[%clk 0:02:48.4]}
12... Bg4 {[%clk 0:02:30.5]} 13. Qf4 {[%clk 0:02:38.9]} 13... Bxf3 {[%clk
0:02:26.2]} 14. gxf3 {[%clk 0:02:38.9]} 14... b5 {[%clk 0:02:22.6]} 15. Bd5
{[%clk 0:02:37.8]} 15... Nd4 {[%clk 0:02:17.4]} 16. Kb1 {[%clk 0:02:37.2]} 16...
Rab8 {[%clk 0:01:58.5]} 17. c3 {[%clk 0:02:23.8]} 17... Ne6 {[%clk 0:01:56.2]}
18. Qe5 {[%clk 0:02:21.9]} 18... b4 {[%clk 0:01:51.6]} 19. c4 {[%clk 0:02:17.3]}
19... b3 {[%clk 0:01:43]} 20. a3 {[%clk 0:02:16.1]} 20... Nd4 {[%clk 0:01:42.9]}
21. Rxd4 {[%clk 0:02:06.7]} 21... Rbe8 {[%clk 0:01:36.3]} 22. Qg5 {[%clk
0:02:01.5]} 22... h6 {[%clk 0:01:34.1]} 23. Qf5 {[%clk 0:02:00.7]} 23... Kh8
{[%clk 0:01:24.2]} 24. Rd3 {[%clk 0:01:56.5]} 24... Re7 {[%clk 0:01:15]} 25. Rg1
{[%clk 0:01:56.1]} 25... Rfe8 {[%clk 0:01:06.6]} 26. Rxb3 {[%clk 0:01:55.4]}
26... Qd2 {[%clk 0:01:05.8]} 27. Qg4 {[%clk 0:01:51.3]} 27... f6 {[%clk
0:01:05.5]} 28. Qg3 {[%clk 0:01:46.3]} 28... a5 {[%clk 0:01:02.7]} 29. f4 {[%clk
0:01:45.8]} 29... a4 {[%clk 0:00:59.8]} 30. Rb5 {[%clk 0:01:44.5]} 30... Qd4
{[%clk 0:00:52.8]} 31. Qe3 {[%clk 0:01:43.3]} 31... Rxe4 {[%clk 0:00:52.4]} 32.
Bxe4 {[%clk 0:01:42.5]} 32... Qxc4 {[%clk 0:00:52.4]} 33. Bd3 {[%clk 0:01:36.8]}
33... Qc3 {[%clk 0:00:47.5]} 34. Qxe8# {[%clk 0:01:35.3]} 1-0

[Event "Early-Titled-Tuesday-Blitz-March-26-2024"]
[Site "Chess.com"]
[Date "2024.03.26"]
[Round "10"]
[White "ChelsieMonica"]
[Black "BilicVladimir"]
[Result "0-1"]
[WhiteElo "2547"]
[BlackElo "2676"]
[TimeControl "180+1"]
[EndTime "9:51:01 PDT"]
[Termination "BilicVladimir won by resignation"]

1. e4 {[%clk 0:03:00.9]} 1... e6 {[%clk 0:02:55]} 2. d4 {[%clk 0:03:00.7]} 2...
d5 {[%clk 0:02:53.8]} 3. Nd2 {[%clk 0:03:01.4]} 3... dxe4 {[%clk 0:02:53.5]} 4.
Nxe4 {[%clk 0:03:02.2]} 4... Nd7 {[%clk 0:02:54]} 5. Nf3 {[%clk 0:03:01.4]} 5...
Ngf6 {[%clk 0:02:54.5]} 6. Nxf6+ {[%clk 0:03:00.6]} 6... Nxf6 {[%clk 0:02:53.4]}
7. Bd3 {[%clk 0:03:01.4]} 7... c5 {[%clk 0:02:53.4]} 8. O-O {[%clk 0:02:59.8]}
8... cxd4 {[%clk 0:02:53.5]} 9. Nxd4 {[%clk 0:02:58.6]} 9... Be7 {[%clk
0:02:53.8]} 10. c3 {[%clk 0:02:42]} 10... O-O {[%clk 0:02:51.2]} 11. Qe2 {[%clk
0:02:41.3]} 11... Qc7 {[%clk 0:02:50.5]} 12. h3 {[%clk 0:02:34.8]} 12... a6
{[%clk 0:02:50.5]} 13. Bg5 {[%clk 0:02:33.4]} 13... Bd7 {[%clk 0:02:47.6]} 14.
Rad1 {[%clk 0:02:32.3]} 14... Rad8 {[%clk 0:02:46.8]} 15. Bh4 {[%clk 0:02:28.4]}
15... Rfe8 {[%clk 0:02:44.4]} 16. Rfe1 {[%clk 0:02:27.5]} 16... Nd5 {[%clk
0:02:36.9]} 17. Bxe7 {[%clk 0:01:38.5]} 17... Nxe7 {[%clk 0:02:33.8]} 18. Qh5
{[%clk 0:01:32.3]} 18... g6 {[%clk 0:02:32.4]} 19. Qh6 {[%clk 0:01:31.7]} 19...
Bc6 {[%clk 0:02:25.6]} 20. h4 {[%clk 0:01:26]} 20... Nf5 {[%clk 0:02:18.9]} 21.
Bxf5 {[%clk 0:01:19.5]} 21... exf5 {[%clk 0:02:18.8]} 22. Qg5 {[%clk 0:01:13.7]}
22... Qa5 {[%clk 0:01:53.1]} 23. h5 {[%clk 0:01:02.5]} 23... Rxe1+ {[%clk
0:01:45.9]} 24. Rxe1 {[%clk 0:01:00.2]} 24... Rxd4 {[%clk 0:01:41.6]} 25. b4
{[%clk 0:00:53.1]} 25... Qd8 {[%clk 0:01:41.4]} 26. Qh6 {[%clk 0:00:36.3]} 26...
Rd1 {[%clk 0:01:37.5]} 27. Rxd1 {[%clk 0:00:31]} 27... Qxd1+ {[%clk 0:01:36.8]}
28. Kh2 {[%clk 0:00:31.9]} 28... Qxh5+ {[%clk 0:01:37.1]} 0-1

[Event "Early-Titled-Tuesday-Blitz-March-26-2024"]
[Site "Chess.com"]
[Date "2024.03.26"]
[Round "10"]
[White "js20000"]
[Black "YegoryoCh"]
[Result "1-0"]
[WhiteElo "2818"]
[BlackElo "2533"]
[TimeControl "180+1"]
[EndTime "9:51:03 PDT"]
[Termination "js20000 won by resignation"]

1. d4 {[%clk 0:03:00.9]} 1... d5 {[%clk 0:02:59.8]} 2. Nf3 {[%clk 0:03:00.4]}
2... Nf6 {[%clk 0:02:59.8]} 3. Bf4 {[%clk 0:02:59.9]} 3... e6 {[%clk 0:02:57.7]}
4. e3 {[%clk 0:03:00]} 4... Bd6 {[%clk 0:02:57.9]} 5. Nbd2 {[%clk 0:03:00.5]}
5... O-O {[%clk 0:02:52.1]} 6. Bd3 {[%clk 0:02:58.3]} 6... b6 {[%clk 0:02:52]}
7. Bxd6 {[%clk 0:02:54.3]} 7... Qxd6 {[%clk 0:02:51.6]} 8. e4 {[%clk 0:02:54.3]}
8... dxe4 {[%clk 0:02:37.1]} 9. Nxe4 {[%clk 0:02:55.2]} 9... Qb4+ {[%clk
0:02:34.6]} 10. c3 {[%clk 0:02:55]} 10... Qxb2 {[%clk 0:02:31.5]} 11. Nxf6+
{[%clk 0:02:55.4]} 11... gxf6 {[%clk 0:02:32]} 12. O-O {[%clk 0:02:56.2]} 12...
Qxc3 {[%clk 0:02:28.2]} 13. Rc1 {[%clk 0:02:55.4]} 13... Qa5 {[%clk 0:02:26.1]}
14. Rxc7 {[%clk 0:02:52.7]} 14... Ba6 {[%clk 0:02:25.3]} 15. Be4 {[%clk
0:01:58]} 15... Bxf1 {[%clk 0:02:20.1]} 16. Bxa8 {[%clk 0:01:57.9]} 16... Na6
{[%clk 0:02:16.9]} 17. Rxa7 {[%clk 0:01:57.3]} 17... Bc4 {[%clk 0:01:56.4]} 18.
Bb7 {[%clk 0:01:41.1]} 18... Qxa2 {[%clk 0:01:42]} 19. Nd2 {[%clk 0:01:29.7]}
19... Bd3 {[%clk 0:01:38.8]} 20. h4 {[%clk 0:01:20.7]} 20... Kh8 {[%clk
0:01:24.4]} 21. Nf1 {[%clk 0:00:53.6]} 21... f5 {[%clk 0:01:05.7]} 22. Qxd3
{[%clk 0:00:52.1]} 1-0

[Event "Early-Titled-Tuesday-Blitz-March-26-2024"]
[Site "Chess.com"]
[Date "2024.03.26"]
[Round "10"]
[White "UK_23"]
[Black "Nf3c5"]
[Result "0-1"]
[WhiteElo "2403"]
[BlackElo "2540"]
[TimeControl "180+1"]
[EndTime "9:51:09 PDT"]
[Termination "Nf3c5 won by resignation"]

1. e4 {[%clk 0:02:55.7]} 1... e5 {[%clk 0:02:55.5]} 2. Nf3 {[%clk 0:02:55.5]}
2... Nc6 {[%clk 0:02:55.6]} 3. d4 {[%clk 0:02:56.1]} 3... exd4 {[%clk
0:02:53.9]} 4. Nxd4 {[%clk 0:02:57]} 4... Qf6 {[%clk 0:02:52.6]} 5. Nf3 {[%clk
0:02:54.4]} 5... Bb4+ {[%clk 0:02:42.7]} 6. c3 {[%clk 0:02:54.1]} 6... Bc5
{[%clk 0:02:42.7]} 7. Bg5 {[%clk 0:02:50.3]} 7... Qg6 {[%clk 0:02:40.2]} 8. Bd3
{[%clk 0:02:50]} 8... Ne5 {[%clk 0:02:37.8]} 9. Nxe5 {[%clk 0:02:41.4]} 9...
Qxg5 {[%clk 0:02:34.8]} 10. b4 {[%clk 0:01:50.2]} 10... Qxg2 {[%clk 0:01:46.8]}
11. Qf3 {[%clk 0:01:44.9]} 11... Bxf2+ {[%clk 0:01:35.7]} 12. Ke2 {[%clk
0:01:42.7]} 12... Qxf3+ {[%clk 0:01:34.2]} 13. Nxf3 {[%clk 0:01:43.6]} 13... Bb6
{[%clk 0:01:33.8]} 14. c4 {[%clk 0:01:40.4]} 14... d6 {[%clk 0:01:32.9]} 15. a4
{[%clk 0:01:38]} 15... a5 {[%clk 0:01:31.7]} 16. b5 {[%clk 0:01:38.2]} 16... Nf6
{[%clk 0:01:31.1]} 17. Nc3 {[%clk 0:01:38.4]} 17... Bg4 {[%clk 0:01:31.5]} 18.
h3 {[%clk 0:01:37.7]} 18... Bh5 {[%clk 0:01:31.5]} 19. Raf1 {[%clk 0:01:35.7]}
19... Bd4 {[%clk 0:01:22]} 20. Kd2 {[%clk 0:01:35.3]} 20... Bxc3+ {[%clk
0:01:13.5]} 21. Kxc3 {[%clk 0:01:35.2]} 21... Bxf3 {[%clk 0:01:14.3]} 22. Rxf3
{[%clk 0:01:36]} 22... Nd7 {[%clk 0:01:14.9]} 23. Rg1 {[%clk 0:01:35.1]} 23...
g6 {[%clk 0:01:11.4]} 24. Bc2 {[%clk 0:01:35.1]} 24... Ne5 {[%clk 0:01:11.1]}
25. Rfg3 {[%clk 0:01:32.7]} 25... Ke7 {[%clk 0:01:09.4]} 26. h4 {[%clk
0:01:33.1]} 26... h5 {[%clk 0:01:09.1]} 27. Rf1 {[%clk 0:01:32.8]} 27... b6
{[%clk 0:01:07.9]} 28. Rfg1 {[%clk 0:01:32.8]} 28... Rae8 {[%clk 0:01:05.5]} 29.
Rf1 {[%clk 0:01:33.2]} 29... Kf8 {[%clk 0:01:02.5]} 30. Kd4 {[%clk 0:01:32.1]}
30... Kg7 {[%clk 0:01:02.6]} 31. Rfg1 {[%clk 0:01:31.9]} 31... Re7 {[%clk
0:01:02.7]} 32. Rf1 {[%clk 0:01:32.3]} 32... Rhe8 {[%clk 0:01:03.2]} 33. Rfg1
{[%clk 0:01:32.8]} 33... Nd7 {[%clk 0:01:02.2]} 34. Rf1 {[%clk 0:01:29.3]} 34...
Nc5 {[%clk 0:00:54.8]} 35. Rf4 {[%clk 0:01:29.2]} 35... Ne6+ {[%clk 0:00:51.1]}
0-1